{"text_format":"3","workbook":"xlsx","n_sheets":4,"sheets":["Marcos","Roteiro","Sobre","Dados do gráfico"],"not_rendered":{"charts":1,"defined_names":2},"read":"whole","date_system":"1900"}

{"sheet":"Marcos","index":0,"n_rows":27,"n_cols":5,"rows_kept":27}
["Crie um Roteiro inserindo marcos e atividades importantes nessa planilha.\nO título dessa planilha está na célula C1. \nAs informações sobre como usar esta planilha, incluindo instruções para leitores de tela, estão na planilha Sobre.\nContinue navegando pela coluna A para conferir mais instruções.",null,"Marcos"]
["Os cabeçalhos da tabela estão nas células C2 a E2. Use as opções de Classificar e Filtrar para classificar ou localizar entradas específicas.\nInsira Marcos com datas e defina uma posição para traçar o marco na tabela, começando na célula C3.\nA Coluna B está oculta. O gráfico gerado a partir desses dados usando uma barra de rolagem para exibir blocos da linha do tempo. A coluna B ajuda a determinar quais Marcos deverão ser traçados quando a barra de rolagem for incrementada. \nAviso: Excluir ou modificar o conteúdo da coluna B pode prejudicar a integridade dos gráficos incorporados nesta pasta de trabalho.","Nº","Posição","Data","Marco"]
["Insira a Posição para traçar a data e o marco na célula C1. Digite um número positivo entre 1 e 3 para traçar o marco acima da linha do tempo. Digite um número negativo entre 1 e 3 para traçar o marco abaixo da linha do tempo.\nInsira a Data e Marco ou atividade na coluna D e E dentro da tabela.\nRepita esse padrão para cada nova linha na tabela à direita.\nExemplos de dados são fornecidos nas linhas 3 a 26. Modifique ou exclua o exemplo de conteúdo para criar seu próprio roteiro.\nProssiga para a célula A27 para ver a próxima instrução.",{"$f":"ROW($A1)","v":1},1,{"$f":"TODAY()","v":"2018-06-29"},"Início"]
[null,{"$f":"ROW($A2)","v":2},-2,{"$f":"D3+10","v":"2018-07-09"},"Análise do Problema\natividade 1"]
[null,{"$f":"ROW($A3)","v":3},1,{"$f":"D4+20","v":"2018-07-29"},"Desenvolver Caso de Negócios\natividade 1\natividade 2"]
[null,4,-1,{"$f":"D5+30","v":"2018-08-28"},"Revisar Apresentação"]
[null,5,{"v":-0.5,"d":"-1"},{"$f":"D6+40","v":"2018-10-07"},"Executar Início\natividade 1\natividade 2"]
[null,6,2,{"$f":"D7+50","v":"2018-11-26"},"Executar Alinhamento\natividade 1\natividade 2\natividade 3"]
[null,7,{"v":0.5,"d":"1"},{"$f":"D8+60","v":"2019-01-25"},"Adesão de Partes Interessadas"]
[null,8,-1,{"$f":"D9+70","v":"2019-04-05"},"Seleção de Recursos"]
[null,9,{"v":0.5,"d":"1"},{"$f":"D10+80","v":"2019-06-24"},"Criação de Equipe\natividade 1 "]
[null,10,-2,{"$f":"D11+90","v":"2019-09-22"},"Início da Equipe\natividade 1 \natividade 2\natividade 3\natividade 4"]
[null,11,3,{"$f":"D12+100","v":"2019-12-31"},"Começar Coleta de Dados"]
[null,12,-1,{"$f":"D13+90","v":"2020-03-30"},"Análise de Dados"]
[null,13,1,{"$f":"D14+80","v":"2020-06-18"},"Design"]
[null,14,1,{"$f":"D15+70","v":"2020-08-27"},"Prova de Conceito"]
[null,15,-3,{"$f":"D16+60","v":"2020-10-26"},"Teste e Análise"]
[null,16,-2,{"$f":"D17+50","v":"2020-12-15"},"Reformulação"]
[null,17,2,{"$f":"D18+40","v":"2021-01-24"},"Reestrutura"]
[null,18,-1,{"$f":"D19+30","v":"2021-02-23"},"Teste e Análise"]
[null,19,1,{"$f":"D20+20","v":"2021-03-15"},"Reformulação"]
[null,20,-3,{"$f":"D21+10","v":"2021-03-25"},"Reestrutura"]
[null,21,2,{"$f":"D22+20","v":"2021-04-14"},"Teste Final"]
[null,22,1,{"$f":"D23+30","v":"2021-05-14"},"Teste Beta"]
[null,23,-3,{"$f":"D24+40","v":"2021-06-23"},"Revisão"]
[null,24,-2,{"$f":"D25+50","v":"2021-08-12"},"Lançar para Marketing"]
["Para adicionar mais linhas à tabela Marcos Roteiro, basta inserir uma nova linha acima desta.\nNão há mais instruções nesta planilha.",null,"Para adicionar mais marcos, insira novas linhas acima desta."]

{"sheet":"Roteiro","index":1,"n_rows":3,"n_cols":4,"rows_kept":3}
["Um gráfico exibindo os marcos da planilha Marcos nesta planilha. \nOs anos são indicados nas células B2; C2 e D2 e têm o estilo Cabeçalho 3 aplicado.\nSão traçados 10 marcos por vez. \nUse a barra de rolagem nas células B4 a D4 para navegar pelo roteiro.\nOs anos da Linha do Tempo estão nas células B3 a D3.\nNão há mais instruções nesta planilha."]
[]
[null,{"$f":"'Dados do gráfico'!B20","v":2018},{"$f":"'Dados do gráfico'!B21","v":""},{"$f":"'Dados do gráfico'!B22","v":2019}]

{"sheet":"Sobre","index":2,"n_rows":5,"n_cols":1,"rows_kept":5}
["Sobre esta pasta de trabalho"]
["Guia para leitores de tela"]
["Há 4 planilhas nesta pasta de trabalho. \n\nMarcos\nRoteiro\nSobre\nDados do Gráfico (ocultos)\n\nAs instruções para cada planilha estão na coluna A, começando na célula A1 de cada planilha. Elas foram escritas com texto oculto. Cada etapa orienta você pelas informações nessa linha. Cada etapa subsequente continua na célula A2, A3 e assim por diante, caso isso não seja orientado explicitamente. Por exemplo, o texto da instrução pode mostrar \"continua na célula A6\" para a próxima etapa. \n\nO texto oculto não será impresso.\n\nPara remover essas instruções de qualquer planilha, basta excluir a coluna A.\n"]
["Este roteiro usa posições para traçar marcos e atividades. As posições podem ser usadas para adicionar peso a um marco ou atividade. Basta ajustar os valores de acordo com suas preferências de peso. Por exemplo, o marco/atividade 3 pode ter mais peso do que o marco/atividade 2. Para indicar isso no gráfico, dê um valor maior à Posição do marco/atividade 3 do que à do marco/atividade 2.  \n"]
["Esta é a última instrução nesta planilha."]

{"sheet":"Dados do gráfico","index":3,"n_rows":26,"n_cols":4,"rows_kept":26,"hidden":true}
["Os dados para criar o gráfico dinâmico estão nesta planilha. Não exclua esta planilha!\nExcluir essa planilha pode comprometer o recurso dinâmico da pasta de trabalho.","Não exclua esta planilha!"]
["O título da tabela está na célula B2.","Conteúdo do Gráfico Dinâmico"]
["Os cabeçalhos da tabela estão nas células B3 a D3. \nEsta tabela é atualizada automaticamente com base no conteúdo inserido na planilha Marcos.\nAviso: A modificação ou exclusão de conteúdo nesta tabela pode comprometer a capacidade de atualização dinâmica do gráfico Roteiro na planilha Roteiro.\nProssiga para a célula A15 para conferir a próxima instrução.","Data","Eventos","Posição"]
[null,{"$f":"IFERROR(IF(LEN(Marcos!D3)=0,\"\",INDEX(MarcosRoteiro[],Marcos!$B3+$B$17,3)),\"\")","v":"2018-06-29"},{"$f":"IFERROR(IF(LEN(Marcos!E3)=0,\"\",INDEX(MarcosRoteiro[],Marcos!$B3+$B$17,4)),\"\")","v":"Início"},{"$f":"IFERROR(INDEX(MarcosRoteiro[],Marcos!$B3+$B$17,2),\"\")","v":1}]
[null,{"$f":"IFERROR(IF(LEN(Marcos!D4)=0,\"\",INDEX(MarcosRoteiro[],Marcos!$B4+$B$17,3)),\"\")","v":"2018-07-09"},{"$f":"IFERROR(IF(LEN(Marcos!E4)=0,\"\",INDEX(MarcosRoteiro[],Marcos!$B4+$B$17,4)),\"\")","v":"Análise do Problema\natividade 1"},{"$f":"IFERROR(INDEX(MarcosRoteiro[],Marcos!$B4+$B$17,2),\"\")","v":-2}]
[null,{"$f":"IFERROR(IF(LEN(Marcos!D5)=0,\"\",INDEX(MarcosRoteiro[],Marcos!$B5+$B$17,3)),\"\")","v":"2018-07-29"},{"$f":"IFERROR(IF(LEN(Marcos!E5)=0,\"\",INDEX(MarcosRoteiro[],Marcos!$B5+$B$17,4)),\"\")","v":"Desenvolver Caso de Negócios\natividade 1\natividade 2"},{"$f":"IFERROR(INDEX(MarcosRoteiro[],Marcos!$B5+$B$17,2),\"\")","v":1}]
[null,{"$f":"IFERROR(IF(LEN(Marcos!D6)=0,\"\",INDEX(MarcosRoteiro[],Marcos!$B6+$B$17,3)),\"\")","v":"2018-08-28"},{"$f":"IFERROR(IF(LEN(Marcos!E6)=0,\"\",INDEX(MarcosRoteiro[],Marcos!$B6+$B$17,4)),\"\")","v":"Revisar Apresentação"},{"$f":"IFERROR(INDEX(MarcosRoteiro[],Marcos!$B6+$B$17,2),\"\")","v":-1}]
[null,{"$f":"IFERROR(IF(LEN(Marcos!D7)=0,\"\",INDEX(MarcosRoteiro[],Marcos!$B7+$B$17,3)),\"\")","v":"2018-10-07"},{"$f":"IFERROR(IF(LEN(Marcos!E7)=0,\"\",INDEX(MarcosRoteiro[],Marcos!$B7+$B$17,4)),\"\")","v":"Executar Início\natividade 1\natividade 2"},{"$f":"IFERROR(INDEX(MarcosRoteiro[],Marcos!$B7+$B$17,2),\"\")","v":-0.5}]
[null,{"$f":"IFERROR(IF(LEN(Marcos!D8)=0,\"\",INDEX(MarcosRoteiro[],Marcos!$B8+$B$17,3)),\"\")","v":"2018-11-26"},{"$f":"IFERROR(IF(LEN(Marcos!E8)=0,\"\",INDEX(MarcosRoteiro[],Marcos!$B8+$B$17,4)),\"\")","v":"Executar Alinhamento\natividade 1\natividade 2\natividade 3"},{"$f":"IFERROR(INDEX(MarcosRoteiro[],Marcos!$B8+$B$17,2),\"\")","v":2}]
[null,{"$f":"IFERROR(IF(LEN(Marcos!D9)=0,\"\",INDEX(MarcosRoteiro[],Marcos!$B9+$B$17,3)),\"\")","v":"2019-01-25"},{"$f":"IFERROR(IF(LEN(Marcos!E9)=0,\"\",INDEX(MarcosRoteiro[],Marcos!$B9+$B$17,4)),\"\")","v":"Adesão de Partes Interessadas"},{"$f":"IFERROR(INDEX(MarcosRoteiro[],Marcos!$B9+$B$17,2),\"\")","v":0.5}]
[null,{"$f":"IFERROR(IF(LEN(Marcos!D10)=0,\"\",INDEX(MarcosRoteiro[],Marcos!$B10+$B$17,3)),\"\")","v":"2019-04-05"},{"$f":"IFERROR(IF(LEN(Marcos!E10)=0,\"\",INDEX(MarcosRoteiro[],Marcos!$B10+$B$17,4)),\"\")","v":"Seleção de Recursos"},{"$f":"IFERROR(INDEX(MarcosRoteiro[],Marcos!$B10+$B$17,2),\"\")","v":-1}]
[null,{"$f":"IFERROR(IF(LEN(Marcos!D11)=0,\"\",INDEX(MarcosRoteiro[],Marcos!$B11+$B$17,3)),\"\")","v":"2019-06-24"},{"$f":"IFERROR(IF(LEN(Marcos!E11)=0,\"\",INDEX(MarcosRoteiro[],Marcos!$B11+$B$17,4)),\"\")","v":"Criação de Equipe\natividade 1 "},{"$f":"IFERROR(INDEX(MarcosRoteiro[],Marcos!$B11+$B$17,2),\"\")","v":0.5}]
[null,{"$f":"IFERROR(IF(LEN(Marcos!D12)=0,\"\",INDEX(MarcosRoteiro[],Marcos!$B12+$B$17,3)),\"\")","v":"2019-09-22"},{"$f":"IFERROR(IF(LEN(Marcos!E12)=0,\"\",INDEX(MarcosRoteiro[],Marcos!$B12+$B$17,4)),\"\")","v":"Início da Equipe\natividade 1 \natividade 2\natividade 3\natividade 4"},{"$f":"IFERROR(INDEX(MarcosRoteiro[],Marcos!$B12+$B$17,2),\"\")","v":-2}]
[]
["A rolagem pelo roteiro é possibilitada por um valor incremental. O título desse recurso está na célula B15.\nUma tabela com um cabeçalho e um valor único está nas células B16 e B17.\nProssiga para a célula A19 para conferir a próxima instrução.","Capacidade de rolagem"]
[null,"Incremento da Linha"]
[null,0]
[]
["O gráfico Roteiro demarca os anos da linha do tempo. Para isso, os anos devem ser capturados na Lista de Marcos. \nO título desta seção é \"Ano\" na célula B19. \nOs valores do ano são gerados automaticamente nas células C20 a C22.\nAviso: A exclusão ou modificação desses anos pode alterar a precisão do gráfico Roteiro.\nProssiga para a célula A24 para ver a próxima instrução.","Ano"]
[null,{"$f":"IFERROR(YEAR(B4),\"\")","v":2018},"<-- ano da posição inicial do roteiro"]
[null,{"$f":"IFERROR(IF(YEAR($B$9)=$B$20,\"\",YEAR($B$9)),\"\")","v":""},"<-- ano do período intermediário do roteiro. Isso pode estar em branco se for o mesmo ano da posição inicial do roteiro"]
[null,{"$f":"IFERROR(IF(YEAR($B$13)=$B$20,\"\",YEAR($B$13)),\"\")","v":2019},"<-- ano do período final do roteiro. Isso pode estar em branco se for o mesmo ano da posição inicial do roteiro"]
[]
["Os marcadores de rosca no gráfico Roteiro contêm datas do conteúdo do gráfico dinâmico nesta planilha. As datas são Primeira data na célula C24, Data do meio na célula C25 e Última data na célula C26.\nNão há mais instruções nesta planilha.","Primeira data",{"$f":"B4","v":"2018-06-29"}]
[null,"Data do meio",{"$f":"B9","v":"2018-11-26"}]
[null,"Última data",{"$f":"B13","v":"2019-09-22"}]